[Event "Tata Steel-A 79th"]
[Site "Wijk aan Zee"]
[Date "2017.01.20"]
[Round "6"]
[White "Aronian, Levon"]
[Black "Carlsen, Magnus"]
[Result "1/2-1/2"]
[ECO "D15"]
[WhiteElo "2780"]
[BlackElo "2840"]
[Annotator "ChessBase II"]
[PlyCount "60"]
[EventDate "2017.01.14"]
[EventType "tourn"]
[EventRounds "13"]
[EventCountry "NED"]
[EventCategory "21"]
[SourceTitle "CBM 177"]
[Source "ChessBase"]
[SourceDate "2017.03.16"]
[SourceVersion "1"]
[SourceVersionDate "2017.03.16"]
[SourceQuality "1"]
[TimeControl "40/6000+30:20/3000+30:900+30"]

1. d4 {[%emt 0:00:00]} d5 {[%emt 0:00:17]} 2. c4 {[%emt 0:00:00]} c6 {[%emt 0:00:04]} 3. Nc3 {[%emt 0:00:00]} Nf6 {[%emt 0:00:07]} 4. e3 {[%emt 0:00:00]} a6 {[%emt 0:00:11]} 5. Nf3 {[%emt 0:00:00]} Bf5 {[%emt 0:00:11]} 6. Be2 {[%emt 0:00:00]} h6 {[%emt 0:00:13]} 7. Qb3 {[%emt 0:00:03]} Ra7 {[%emt 0:00:08]} 8. cxd5 {[%emt 0:00:04]} cxd5 {[%emt 0:00:06]} 9. Ne5 {[%emt 0:01:01]} e6 {[%emt 0:00:06]} 10. Bd2 {[%emt 0:01:49]} Be7 {[%emt 0:01:34]} 11. O-O {[%emt 0:00:15]} O-O {[%emt 0:00:07]} 12. Rfc1 {[%emt 0:00:03]} Nfd7 {[%emt 0:10:26]} 13. Nxd7 {[%emt 0:00:07]} Qxd7 {[%emt 0:00:08]} ({RR} 13... Nxd7 14. Na4 Bd6 15. Nc5 Nxc5 16. dxc5 Bc7 17. Bf3 Qd7 18. Qc3 Rc8 19. b4 e5 20. g3 f6 21. a4 Be6 22. Qb2 Rca8 23. Bc3 Qf7 24. Rab1 b6 25. Bd2 Rb8 26. cxb6 Bxb6 27. b5 axb5 28. axb5 {Tan,J (2414)-Molina,R (2381) chess.com INT 2025 1-0 (47)}) 14. Na4 {[%emt 0:00:50]} Nc6 {[%emt 0:01:20]} 15. Qb6 $146 {[%emt 0:00:37]} (15. Nc5 Qc7 16. h3 Rc8 17. a4 Bd6 18. a5 Qe7 19. Bd3 Bxd3 20. Nxd3 Raa8 21. Rc2 Na7 22. Rac1 Rxc2 23. Rxc2 {½-½ (23) Le,Q (2702)-Vallejo Pons,F (2706) Tromsoe 2013}) ({RR} 15. Nc5 Qc7 16. h3 Rc8 17. a4 Bd6 18. a5 Qe7 19. Bd3 Bxd3 20. Nxd3 Raa8 21. Rc2 Na7 22. Rac1 Rxc2 23. Rxc2 {½-½ (23) Le,Q (2702)-Vallejo Pons,F (2706) Tromsoe 2013}) 15... Rfa8 {[%emt 0:11:04]} 16. Nc5 {[%emt 0:00:10]} Qc8 {[%emt 0:00:19]} 17. a3 {[%emt 0:01:55]} Bd6 {[%emt 0:08:40]} 18. g3 {[%emt 0:01:30]} Bc7 {[%emt 0:11:47]} 19. Qb3 {[%emt 0:00:07]} Qe8 {[%emt 0:01:50]} 20. Bf1 {[%emt 0:18:02]} Rb8 {[%emt 0:12:14]} 21. Qc3 {[%emt 0:06:21]} Bd8 {[%emt 0:06:53]} 22. Nxa6 {[%emt 0:05:34]} bxa6 {[%emt 0:00:03]} 23. Qxc6 {[%emt 0:00:12]} Qxc6 {[%emt 0:00:03]} 24. Rxc6 {[%emt 0:00:06]} Rxb2 {[%emt 0:00:04]} 25. Be1 {[%emt 0:00:08]} Be7 {[%emt 0:01:58]} 26. Rxa6 {[%emt 0:10:32]} Rab7 {[%emt 0:00:10]} 27. Rc6 {[%emt 0:00:17]} Rb1 {[%emt 0:00:08]} 28. Rc1 {[%emt 0:00:05]} Rxc1 {[%emt 0:00:06]} 29. Rxc1 {[%emt 0:00:04]} Bxa3 {[%emt 0:00:06]} 30. Ra1 {[%emt 0:00:07]} Rb1 {[%emt 0:00:24]} 1/2-1/2

[Event "July 23 Late 2024"]
[Site "Chess.com"]
[Date "2024.07.23"]
[Round "3.1"]
[White "Urazayev, Arystanbek"]
[Black "Carlsen, Magnus"]
[Result "0-1"]
[ECO "A50"]
[WhiteElo "2773"]
[BlackElo "3241"]
[PlyCount "70"]
[EventDate "2024.??.??"]
[WhiteTeam "KAZ"]
[BlackTeam "NOR"]
[TimeControl "180+1"]
[WhiteClock "0:01:27"]
[BlackClock "0:01:06"]

1. d4 {[%emt 0:00:02]} Nf6 {[%emt 0:00:03]} 2. c4 {[%emt 0:00:00]} b6 {[%emt 0:00:01]} 3. Nc3 {[%emt 0:00:01]} Bb7 {[%emt 0:00:01]} 4. e3 {[%emt 0:00:02]} g6 {[%emt 0:00:09]} 5. Nf3 {[%emt 0:00:01]} Bg7 {[%emt 0:00:02]} 6. Bd3 {[%emt 0:00:01]} d6 $146 {[%emt 0:00:01]} ({RR} 6... O-O 7. O-O d6 8. b3 e5 9. dxe5 dxe5 10. Nxe5 Nfd7 11. Nxd7 Bxc3 12. Nxf8 Bxa1 13. Nxh7 Na6 14. f4 Nc5 15. Ba3 Nxd3 16. Qxa1 Kxh7 17. Rd1 Be4 18. Qc3 Qh4 19. Rxd3 Bxd3 20. Bb2 f6 21. g3 {Coleman,T (2333)-Rozman,L (2343) Chess.com INT 2020 1-0 (48)}) ({RR} 6... O-O 7. O-O e6 8. b3 d6 9. Bb2 Nbd7 10. Qe2 c5 11. Rad1 Qe7 12. Rfe1 a6 13. h3 Rac8 14. Bb1 Rfd8 15. Rd2 cxd4 16. Nxd4 Nc5 17. Red1 Nce4 18. Nxe4 Nxe4 19. Bxe4 Bxe4 20. Nf3 Bxb2 21. Rxb2 {Rakhmanov,A (2645)-Vachier Lagrave,M (2780) Moscow 2019 1-0 (38)}) ({RR} 6... O-O 7. O-O d5 8. Qe2 e6 9. Bd2 Ne4 10. Rac1 Nd7 11. cxd5 exd5 12. Ba6 Bxa6 13. Qxa6 c6 14. Ne2 Qc7 15. Rc2 Rfc8 16. Rfc1 c5 17. Nf4 Qc6 18. dxc5 Ndxc5 19. Qe2 a5 20. Nd4 Qb7 21. Nb5 {Rakhmanov,A (2585)-Erigaisi,A (2771) chess.com INT 2025 ½-½ (88)}) 7. O-O {[%emt 0:00:00]} Nbd7 {[%emt 0:00:01]} 8. b3 {[%emt 0:00:03]} e5 {[%emt 0:00:02]} 9. d5 {[%emt 0:00:08]} e4 {[%emt 0:00:02]} 10. Nd4 {[%emt 0:00:25]} exd3 {[%emt 0:00:02]} 11. Qxd3 {[%emt 0:00:00]} O-O {[%emt 0:00:01]} 12. Bb2 {[%emt 0:00:00]} Re8 {[%emt 0:00:02]} 13. Rad1 {[%emt 0:00:02]} a5 {[%emt 0:00:03]} 14. a4 {[%emt 0:00:01]} Nc5 {[%emt 0:00:01]} 15. Qc2 {[%emt 0:00:01]} Bc8 {[%emt 0:00:12]} 16. Rfe1 {[%emt 0:00:02]} Bd7 {[%emt 0:00:04]} 17. e4 {[%emt 0:00:01]} Nh5 {[%emt 0:00:15]} 18. Bc1 {[%emt 0:00:04]} f5 {[%emt 0:00:05]} 19. f3 {[%emt 0:00:09]} fxe4 {[%emt 0:00:02]} 20. fxe4 {[%emt 0:00:00]} Qh4 {[%emt 0:00:09]} 21. Nf3 {[%emt 0:00:07]} Qf6 {[%emt 0:00:08]} 22. e5 {[%emt 0:00:01]} dxe5 {[%emt 0:00:01]} 23. Bg5 {[%emt 0:00:01]} Qd6 {[%emt 0:00:02]} 24. Nd2 {[%emt 0:00:07]} Bf5 {[%emt 0:00:05]} 25. Qa2 {[%emt 0:00:01]} Nf4 {[%emt 0:00:07]} 26. Nb5 {[%emt 0:00:02]} Qd7 {[%emt 0:00:01]} 27. Nf3 {[%emt 0:00:03]} Ncd3 {[%emt 0:00:03]} 28. Rf1 {[%emt 0:00:02]} h6 {[%emt 0:00:04]} 29. Bxf4 {[%emt 0:00:02]} exf4 {[%emt 0:00:01]} 30. Nh4 {[%emt 0:00:06]} Be4 {[%emt 0:00:06]} 31. Nf3 {[%emt 0:00:17]} c6 {[%emt 0:00:04]} 32. dxc6 {[%emt 0:00:01]} Qxc6 {[%emt 0:00:01]} 33. Ne1 {[%emt 0:00:09]} Qc5+ {[%emt 0:00:21]} 34. Kh1 {[%emt 0:00:01]} Nxe1 {[%emt 0:00:06]} 35. Rdxe1 {[%emt 0:00:06]} Rad8 {[%emt 0:00:02]} 0-1

[Event "Norway Chess 2025"]
[Site "Stavanger, Norway"]
[Date "2025.05.26"]
[Round "1.3"]
[White "Carlsen, Magnus"]
[Black "Gukesh D"]
[Result "1-0"]
[ECO "D00"]
[WhiteElo "2837"]
[BlackElo "2787"]
[Annotator "Rafael Leitao"]
[PlyCount "109"]
[EventDate "2025.??.??"]
[TimeControl "40/7200:0"]

{[%evp 0,109,16,16,16,12,12,18,73,61,84,83,77,26,15,6,9,1,9,-14,-15,-23,-19,-25,-19,-53,-28,-50,-16,-58,-35,-35,-40,-46,5,-69,-33,-31,-41,-29,35,-8,-5,0,0,0,16,19,12,-6,31,-14,-14,-22,-12,-8,0,-15,0,0,0,0,0,10,51,13,30,23,16,20,64,52,52,43,48,47,37,28,28,28,32,20,0,22,0,0,0,0,0,0,0,0,0,0,350,352,370,350,370,317,347,369,615,615,788,788,788,788,685,1104,962,1626]} 1. d4 Nf6 2. Nc3 {Uma escolha surpreendente, embora Carlsen tenha jogado esse lance em algumas partidas online de blitz e rápido.} d5 3. Bf4 c5 4. e3 (4. e4 {é um lance muito popular em partidas online, e eu já o enfrentei muitas vezes nas minhas partidas de lazer no Chess.com.}) 4... Bg4 $5 {Um lance muito mais raro do que capturar o peão em d4.} (4... cxd4) 5. Be2 {A partida rapidamente se afasta da teoria.} (5. f3 {é a resposta mais comum, quando as Negras precisam jogar} Bd7 $1 {para controlar o salto do cavalo para b5. A partida permanece complicada e com chances para ambos os lados após} 6. dxc5) 5... Bxe2 6. Ncxe2 {Jogado apenas uma vez, em uma partida do Titled Tuesday. Capturar com a dama ou com o cavalo de g1 também leva a um jogo equilibrado.} (6. Ngxe2) (6. Qxe2) 6... Nc6 7. Nf3 {A abertura de Carlsen foi discreta, e é difícil imaginar que as Brancas tenham alguma vantagem aqui. Claro, agora todos sabemos que ele fica feliz apenas por ter uma partida para jogar sem tanta teoria, mas mesmo assim, já o vi jogando ideias mais inspiradoras para conseguir isso.} e6 8. c3 Be7 $146 {Um lance novo.} (8... Bd6 9. O-O O-O 10. Bxd6 Qxd6 11. Nf4 Ne4 12. dxc5 Qxc5 {com um empate em Naroditsky-Galchenko, Titled Tuesday blitz 2023.}) ({RR} 8... Bd6 9. O-O O-O 10. Bxd6 Qxd6 11. Nf4 Ne4 12. dxc5 Qxc5 {½-½ (12) Naroditsky,D (2619)-Galchenko,M (2438) chess.com INT 2023}) ({RR} 8... Nh5 9. Be5 Bd6 10. Bxd6 Qxd6 11. Ng3 Nxg3 12. hxg3 h6 13. Qd3 O-O 14. g4 e5 15. dxe5 Nxe5 16. Nxe5 Qxe5 17. O-O-O Rfd8 18. Rh5 Qe6 19. g5 Qg6 20. Qxg6 fxg6 21. Rh4 Kh7 22. gxh6 gxh6 23. Rdh1 {Bazan Romero,O (2289)-Khanbutaev,A (2139) chess.com INT 2025 ½-½ (84)}) 9. Ng3 (9. O-O {também é possível, mas Carlsen não está interessado em rocar.}) 9... O-O 10. Qe2 h6 {Um lance útil. As Negras têm outras boas opções e sua posição é confortável.} 11. Rd1 Qa5 {Forçando as Brancas a defenderem o peão de a2 e a criar fraquezas nas casas claras.} 12. a3 Rfd8 13. h4 {As Brancas têm uma posição sólida na ala da dama, então especulam com um plano com h4-h5, Ce5 e talvez até Th3 e Ch5, iniciando alguma ação na ala do rei. Claro, isso é sonhar alto demais: tanto com o roque quanto com o lance da partida, a avaliação não muda: igualdade confortável para as Negras.} Qa4 {Dominando as casas claras e preparando Dc4.} (13... Qa6 {Também é bastante lógico trocar as damas. Os peões dobrados na coluna \"a\" não são ruins para as Negras.} 14. Qxa6 bxa6 {com igualdade.}) (13... Rac8 {também é possível, simplesmente melhorando a torre. As Brancas podem jogar como na partida com} 14. Ne5) 14. Ne5 Nxe5 15. Bxe5 (15. dxe5 $6 {As Brancas não estão justificado em prejudicar a estrutura de peões na esperança de tentar criar um ataque. As Negras ficam muito sólidas após} Nd7) 15... Nd7 16. Bf4 Qa6 (16... Rac8 {As Negras também poderiam esperar um pouco mais com um lance útil como este. $146ão está claro que elas precisem trocar damas em a6.} 17. Nh5 Bf8 18. g4 $5 {Talvez Gukesh tenha medo de um ataque assim, mas não parece tão assustador.}) 17. Qf3 (17. Qxa6 {é uma escolha sólida.} bxa6 {O final está igual segundo a máquina, embora pareça mais confortável para as Negras em uma partida humana.}) 17... Bd6 (17... Bf8 $1 {Cria mais problemas para as Brancas, já que o rei branco está preso em e1, e as Negars têm a ideia de trocar em d4 e depois preparar o avanço e6-e5, por exemplo:} 18. Nh5 cxd4 19. exd4 Re8 $1 {Quando as Brancas agora são aconselhadas a jogar} 20. Qe2 Qxe2+ 21. Kxe2 {com um bom final para as Negras.}) 18. Nh5 Bxf4 19. Qxf4 (19. Nxf4 {também é possível, mas é compreensível que Carlsen quisesse o cavalo em h5.}) 19... e5 $5 {Um lance ousado e difícil, muito no estilo direto e calculista de Gukesh.} (19... cxd4 20. Qxd4 e5 $1 {é outra solução. Depois de} 21. Qxd5 Rac8 {as Negras preparam Cc5 e têm boa compensação. Uma continuação possível é} 22. Qd6 Qxd6 23. Rxd6 Nc5 24. Rxd8+ Rxd8 25. Ke2 Ne4 $1 26. Kf3 Nd2+ 27. Ke2 Ne4 {com um empate.}) 20. Qg3 {Carlsen decide ir para o final.} (20. dxe5 {é o lance crítico.} Qg6 (20... Qe6 $2 {é um erro tático:} 21. Qg3 Qxe5 22. Rxd5 $1 {ganhando um peão.}) 21. g4 $1 (21. Ng3 {permite} Qe6 {recuperando o peão com igualdade.}) 21... Re8 {O lance mais natural.} (21... d4 $5 {também é possível:} 22. cxd4 cxd4 23. Rxd4 (23. exd4 $2 Nxe5 $1 {e as Brancas não podem capturar o cavalo.}) (23. O-O d3 {com compensação suficiente pelo peão.}) 23... Qb1+ 24. Rd1 Qxb2 {e as Negras provavelmente têm contra-jogo suficiente para alcançar a igualdade.}) 22. Rxd5 Nxe5 $1 23. O-O {O cavalo não pode ser capturado devido ao xeque em b1.} Nxg4 24. Ng3 Nf6 {A posição é mais confortável para as Brancas devido às peças mais ativas, mas as Negras podem lutar pela igualdade e pelo empate. Mesmo assim, essa situação parece mais problemática para o segundo jogador do que a escolha das Brancas.}) 20... Qg6 21. Qxg6 fxg6 22. Ng3 exd4 23. cxd4 (23. exd4 {leva à igualdade fácil depois de} Re8+) 23... c4 24. Ne2 $1 {Melhorando o cavalo.} b5 25. Nc3 Nf6 26. Rb1 $1 {Isto é necessário para combater a expansão da ala da dama das Negras.} Rab8 27. f3 {A única pequena esperança que as Brancas têm de vencer a partida é criar um peão passado com e3-e4, graças aos peões dobrados das Negras em g6 e g7.} a5 (27... b4 {é pior: as Brancas ficam com uma estrutura de peões melhor após} 28. axb4 Rxb4 29. Kd2) 28. b4 $1 cxb3 29. Rxb3 b4 30. axb4 Rxb4 (30... axb4 $6 31. Na4 {é perigoso para as Negras.}) 31. Ra3 {31.Txb4 e 31.Tb1 são possíveis, mas não há vantagem.} Re8 32. Kd2 {As Brancas abandonam o peão de g, deixando a partida um pouco aguda.} (32. Kf2 {As Negras têm várias maneiras de alcançar o empate, uma delas é} Rb2+ 33. Ne2 Ng4+ 34. fxg4 Rf8+ 35. Kg3 Rxe2) 32... Rb2+ 33. Kd3 Rxg2 34. Rxa5 Rg3 35. Rf1 g5 (35... Rd8 {também é bom:} 36. Ne2 Rh3 37. Nf4 Rxh4 38. Nxg6 Rh2 {com um empate provável.}) 36. hxg5 Rxg5 (36... hxg5 {Até isso é possível, mas não há necessidade de defender estando um peão a menos depois de} 37. Nxd5 g4 38. Nxf6+ gxf6 39. Rf5) 37. Rfa1 h5 38. Ra8 Rxa8 (38... h4 {é outra possibilidade:}) 39. Rxa8+ Kh7 40. e4 dxe4+ 41. fxe4 h4 42. e5 {Meu computador afirma que as Negras têm pelo menos cinco lances diferentes que levam ao empate neste momento.} h3 {Gukesh decide seguir por uma linha forçada de empate, mas talvez fosse mais prático simplesmente mover o cavalo. A posição continua igual, mas sem a necessidade de encontrar um lance forçado no final da variante.} (42... Nh5 $1) 43. exf6 h2 44. f7 Rg3+ 45. Kd2 h1=Q (45... Rg2+ {também é bom:} 46. Ne2 h1=Q 47. f8=Q Qh6+ $1 48. Kd3 Qh3+ $1 {com xeque perpétuo. Se as Brancas jogarem para ganhar com} 49. Kc4 $4 {as Negras ganham com} Qe6+ $1) 46. f8=Q Qh6+ $2 {Basicamente o único erro nesta partida, mas às vezes um erro basta para perder.} (46... Rg2+ $7 {leva a um empate:} 47. Kd3 (47. Ne2 Qh6+ $1 48. Kd3 Qh3+ 49. Kd2 Qh6+) 47... Rg3+ $7 48. Kc2 Qg2+ 49. Kb3 Qd5+ (49... Qb7+ {também é suficiente.}) 50. Kc2 (50. Kb2 Qg2+ 51. Ka1 Qg1+ $1 52. Kb2 Qg2+ $1) 50... Qg2+ {com xeque perpétuo.}) 47. Kc2 Qg6+ 48. Kb2 $1 {O único lance vencedor.} (48. Kb3 $2 Qb1+) 48... Qb6+ 49. Ka2 Rg2+ (49... Rxc3 50. Qf5+ $1 g6 (50... Qg6 51. Rh8+) 51. Qf7+ Kh6 52. Qf4+ {com um ataque de mate.}) 50. Ka3 Qb2+ 51. Ka4 Qxc3 (51... Qa1+ 52. Kb4 {e os xeques acabam rapidamente.}) 52. Qh8+ Kg6 53. Ra6+ Kf5 (53... Kf7 54. Qh5+ {termina em mate em breve.}) 54. Qf8+ Ke4 55. Re6+ (55. Re6+ Kd3 (55... Kxd4 56. Qd6+ Kc4 57. Re4+) 56. Qf3+) 1-0

[Event "Norway Chess 2025"]
[Site "Stavanger, Norway"]
[Date "2025.05.28"]
[Round "3.2"]
[White "Carlsen, Magnus"]
[Black "Wei, Yi"]
[Result "1/2-1/2"]
[ECO "E05"]
[WhiteElo "2837"]
[BlackElo "2758"]
[Annotator "Chess.com"]
[PlyCount "101"]
[EventDate "2025.??.??"]
[TimeControl "40/7200:0"]

{[%evp 0,101,19,16,18,4,4,4,4,-34,13,13,13,-6,14,-7,3,-15,-2,-2,-2,-7,4,-28,5,-8,-41,-1,7,-37,-2,0,0,-13,1,1,36,46,46,46,53,41,41,42,26,38,48,66,72,53,72,75,63,46,38,38,38,33,33,33,44,33,43,16,0,12,1,12,21,15,58,43,45,17,36,33,33,39,33,0,0,0,33,-12,0,4,4,4,32,0,0,0,0,0,0,0,0,0,0,0,0,0,0,0]} 1. d4 Nf6 2. c4 e6 3. Nf3 d5 4. g3 Be7 5. Bg2 O-O 6. O-O dxc4 7. Qc2 a6 8. a4 Bd7 9. Qxc4 Bc6 10. Bg5 Bd5 11. Qc2 Be4 12. Qc1 Nc6 13. e3 Bb4 14. Qd1 h6 15. Bxf6 Qxf6 16. Nc3 Bxc3 17. bxc3 Na5 18. Ne5 Bxg2 19. Kxg2 Rfd8 20. Qb1 $146 ({RR} 20. Rb1 c5 21. Qe2 Rac8 22. Rfc1 Rc7 23. Nd3 c4 24. Nc5 e5 25. Qf3 Qg6 26. Rd1 exd4 27. exd4 Qc2 28. Re1 Nb3 29. Ne4 Qa2 30. Nc5 Qc2 31. Qf4 Rdc8 32. Ne4 Rd7 33. Nf6+ gxf6 34. Qg4+ Qg6 {Injac,T (2431)-Mijovic,A (2130) Budva MNE 2023 1-0 (41)}) 20... Rac8 21. Rd1 c5 22. Qb6 cxd4 23. cxd4 Rd5 24. Rdc1 Qd8 25. Qb4 Rc7 26. Rc3 $6 {A move that seems to give away much of White's advantage.} (26. h4 {or other waiting moves, and Carlsen remains clearly better, though there's no obvious knockout blow.}) 26... Rxc3 $1 27. Qxc3 Rd6 $1 {This square is now available after the queen was deflected from b4.} 28. Rb1 f6 29. Ng6 Qe8 30. Qc2 Kf7 31. h4 Qc6+ 32. Qxc6 Rxc6 33. h5 Rc4 34. Kf3 Ke8 35. Nf4 Ke7 36. g4 $6 (36. Nd3 $1 {and White preserves more chances.} e5 (36... Rxa4 37. Nc5 Ra2 38. Rb6 e5 39. d5 Rd2 40. e4 Kf8 {illustrates the kind of chances Carlsen could have got.}) 37. Ke4 {In the game the e5-pawn attacks the knight, so there's no option to play like this.}) 36... e5 37. Ng6+ Ke6 38. dxe5 fxe5 39. Rb6+ Rc6 40. Rb2 Rc4 41. Ra2 Nb3 42. Nh4 Nc5 43. Nf5 Rxa4 44. Rc2 b6 45. Rd2 Ne4 46. Nxg7+ Kf6 47. Rd7 {Black has powerful connected passed pawns on the queenside, so Carlsen decides it's time to shut things down.} Ng5+ 48. Kg3 Ne4+ 49. Kf3 Ng5+ 50. Kg3 Ne4+ 51. Kf3 1/2-1/2